[Event "Titled Tuesday Blitz April 11 Early 2023"]
[White "Reefat, Bin-Sattar"]
[Black "Kim, Sergey"]
[WhiteFideId "10200207"]
[BlackFideId "13700570"]
[WhiteElo "2462"]
[BlackElo "2569"]
[Result "1-0"]
[Round "10"]
[TimeControl "180+2"]
[Date "2023.04.11"]
[WhiteClock "0:00:12"]
[BlackClock "0:00:01"]

1. e4 {[%clk 0:02:50]}  e5 {[%clk 0:02:59]} 2. Nf3 {[%clk 0:02:50]}  Nc6 {[%clk 0:02:59]} 3. Bc4 {[%clk 0:02:50]}  Bc5 {[%clk 0:02:58]} 4. d3 {[%clk 0:02:50]}  Nf6 {[%clk 0:02:58]} 5. a4 {[%clk 0:02:51]}  d6 {[%clk 0:02:58]} 6. c3 {[%clk 0:02:51]}  a6 {[%clk 0:02:58]} 7. Nbd2 {[%clk 0:02:50]}  Ba7 {[%clk 0:02:58]} 8. h3 {[%clk 0:02:50]}  O-O {[%clk 0:02:58]} 9. Bb3 {[%clk 0:02:51]}  Nh5 {[%clk 0:02:56]} 10. Nf1 {[%clk 0:02:45]}  Qf6 {[%clk 0:02:55]} 11. Bg5 {[%clk 0:02:24]}  Qg6 {[%clk 0:02:54]} 12. g4 {[%clk 0:02:23]}  Nf4 {[%clk 0:02:50]} 13. Ng3 {[%clk 0:02:21]}  Be6 {[%clk 0:02:22]} 14. Bc2 {[%clk 0:02:16]}  h6 {[%clk 0:02:07]} 15. Bxf4 {[%clk 0:02:13]}  exf4 {[%clk 0:02:07]} 16. Nh5 {[%clk 0:02:09]}  d5 {[%clk 0:01:59]} 17. Nxf4 {[%clk 0:01:48]}  Qf6 {[%clk 0:01:58]} 18. Nh5 {[%clk 0:01:48]}  Qe7 {[%clk 0:01:48]} 19. Qc1 {[%clk 0:01:36]}  dxe4 {[%clk 0:01:26]} 20. dxe4 {[%clk 0:01:35]}  Bd5 {[%clk 0:01:24]} 21. O-O {[%clk 0:01:30]}  Bc4 {[%clk 0:01:23]} 22. Re1 {[%clk 0:01:28]}  Ne5 {[%clk 0:01:19]} 23. Nxe5 {[%clk 0:01:23]}  Qxe5 {[%clk 0:01:19]} 24. Qf4 {[%clk 0:01:23]}  Qe7 {[%clk 0:01:11]} 25. e5 {[%clk 0:01:17]}  Be6 {[%clk 0:01:06]} 26. Nf6+ {[%clk 0:00:55]}  Kh8 {[%clk 0:00:57]} 27. Qe4 {[%clk 0:00:54]}  g6 {[%clk 0:00:56]} 28. Rad1 {[%clk 0:00:36]}  Rad8 {[%clk 0:00:47]} 29. h4 {[%clk 0:00:36]}  Kg7 {[%clk 0:00:43]} 30. h5 {[%clk 0:00:34]}  Qc5 {[%clk 0:00:25]} 31. Re2 {[%clk 0:00:22]}  Rxd1+ {[%clk 0:00:21]} 32. Bxd1 {[%clk 0:00:22]}  Rd8 {[%clk 0:00:20]} 33. Bc2 {[%clk 0:00:22]}  Bd5 {[%clk 0:00:19]} 34. Qf4 {[%clk 0:00:20]}  Bc4 {[%clk 0:00:16]} 35. hxg6 {[%clk 0:00:18]}  fxg6 {[%clk 0:00:16]} 36. Qe4 {[%clk 0:00:17]}  Kf7 {[%clk 0:00:11]} 37. Qxg6+ {[%clk 0:00:17]}  Ke7 {[%clk 0:00:11]} 38. Qh7+ {[%clk 0:00:16]}  Bf7 {[%clk 0:00:12]} 39. e6 {[%clk 0:00:15]}  Kxf6 {[%clk 0:00:10]} 40. Qxf7+ {[%clk 0:00:15]}  Kg5 {[%clk 0:00:10]} 41. Qh5+ {[%clk 0:00:14]}  Kf6 {[%clk 0:00:09]} 42. Qf7+ {[%clk 0:00:14]}  Kg5 {[%clk 0:00:09]} 43. Qg6+ {[%clk 0:00:14]}  Kh4 {[%clk 0:00:07]} 44. e7 {[%clk 0:00:14]}  Rd2 {[%clk 0:00:03]} 45. Rxd2 {[%clk 0:00:12]}  Qg5 {[%clk 0:00:01]} 46. Qxg5+ {[%clk 0:00:12]} 1-0


[Site "https://www.chess.com"]

[Event "Titled Tuesday Blitz April 11 Early 2023"]
[White "Sargissyan, Sargis"]
[Black "Horak, Martin"]
[WhiteFideId "13303210"]
[BlackFideId "367095"]
[WhiteElo "2109"]
[BlackElo "2091"]
[Result "1/2-1/2"]
[Round "10"]
[TimeControl "180+2"]
[Date "2023.04.11"]
[WhiteClock "0:00:09"]
[BlackClock "0:00:09"]

1. e4 {[%clk 0:03:00]}  c5 {[%clk 0:03:00]} 2. Nf3 {[%clk 0:02:59]}  Nc6 {[%clk 0:03:00]} 3. d4 {[%clk 0:02:57]}  cxd4 {[%clk 0:03:01]} 4. Nxd4 {[%clk 0:02:58]}  Nf6 {[%clk 0:03:01]} 5. Nc3 {[%clk 0:02:58]}  e5 {[%clk 0:03:02]} 6. Ndb5 {[%clk 0:02:58]}  d6 {[%clk 0:03:02]} 7. Bg5 {[%clk 0:02:59]}  a6 {[%clk 0:03:02]} 8. Na3 {[%clk 0:02:59]}  b5 {[%clk 0:02:59]} 9. Nd5 {[%clk 0:03:00]}  Be7 {[%clk 0:02:59]} 10. Bxf6 {[%clk 0:03:00]}  Bxf6 {[%clk 0:03:00]} 11. c3 {[%clk 0:03:01]}  O-O {[%clk 0:02:58]} 12. Nc2 {[%clk 0:03:01]}  Rb8 {[%clk 0:02:58]} 13. h4 {[%clk 0:02:56]}  g6 {[%clk 0:02:52]} 14. g3 {[%clk 0:02:51]}  Bg7 {[%clk 0:02:48]} 15. h5 {[%clk 0:02:51]}  Ne7 {[%clk 0:02:34]} 16. hxg6 {[%clk 0:02:49]}  hxg6 {[%clk 0:02:21]} 17. Nce3 {[%clk 0:02:43]}  Nxd5 {[%clk 0:01:45]} 18. Nxd5 {[%clk 0:02:39]}  Bb7 {[%clk 0:01:36]} 19. a4 {[%clk 0:02:21]}  bxa4 {[%clk 0:01:32]} 20. Bc4 {[%clk 0:01:34]}  Bxd5 {[%clk 0:01:17]} 21. Qxd5 {[%clk 0:01:34]}  Rxb2 {[%clk 0:01:14]} 22. O-O {[%clk 0:01:35]}  Rb6 {[%clk 0:00:45]} 23. Rxa4 {[%clk 0:01:26]}  Qc7 {[%clk 0:00:45]} 24. Rfa1 {[%clk 0:00:58]}  Rc6 {[%clk 0:00:32]} 25. R1a3 {[%clk 0:00:38]}  Rc8 {[%clk 0:00:31]} 26. Bxa6 {[%clk 0:00:37]}  Ra8 {[%clk 0:00:24]} 27. Bc4 {[%clk 0:00:37]}  Rxa4 {[%clk 0:00:24]} 28. Rxa4 {[%clk 0:00:37]}  Bf8 {[%clk 0:00:21]} 29. Kg2 {[%clk 0:00:15]}  Kg7 {[%clk 0:00:21]} 30. Ra7 {[%clk 0:00:11]}  Qxa7 {[%clk 0:00:13]} 31. Qxc6 {[%clk 0:00:12]}  Qe7 {[%clk 0:00:13]} 32. Qd5 {[%clk 0:00:12]}  Qf6 {[%clk 0:00:12]} 33. Bb3 {[%clk 0:00:11]}  Be7 {[%clk 0:00:13]} 34. Bc4 {[%clk 0:00:11]}  Bf8 {[%clk 0:00:13]} 35. Bb3 {[%clk 0:00:11]}  Be7 {[%clk 0:00:13]} 36. Bc4 {[%clk 0:00:11]}  Bd8 {[%clk 0:00:13]} 37. Qc6 {[%clk 0:00:11]}  Qe7 {[%clk 0:00:12]} 38. Bd5 {[%clk 0:00:10]}  Ba5 {[%clk 0:00:08]} 39. Qc4 {[%clk 0:00:09]}  Bb6 {[%clk 0:00:07]} 40. Qb3 {[%clk 0:00:09]}  Bc5 {[%clk 0:00:07]} 41. Qb7 {[%clk 0:00:07]}  Qf6 {[%clk 0:00:07]} 42. f3 {[%clk 0:00:07]}  g5 {[%clk 0:00:07]} 43. g4 {[%clk 0:00:07]}  Qf4 {[%clk 0:00:07]} 44. Qd7 {[%clk 0:00:05]}  Qd2+ {[%clk 0:00:07]} 45. Kh3 {[%clk 0:00:05]}  Qf4 {[%clk 0:00:06]} 46. Kg2 {[%clk 0:00:06]}  Qf6 {[%clk 0:00:07]} 47. Qf5 {[%clk 0:00:05]}  Qxf5 {[%clk 0:00:02]} 48. gxf5 {[%clk 0:00:05]}  f6 {[%clk 0:00:03]} 49. Kh3 {[%clk 0:00:05]}  Kh6 {[%clk 0:00:04]} 50. Kg4 {[%clk 0:00:06]}  Be3 {[%clk 0:00:04]} 51. Be6 {[%clk 0:00:06]}  Bd2 {[%clk 0:00:04]} 52. c4 {[%clk 0:00:06]}  Be3 {[%clk 0:00:04]} 53. Bd5 {[%clk 0:00:06]}  Bc5 {[%clk 0:00:05]} 54. Be6 {[%clk 0:00:07]}  Bd4 {[%clk 0:00:06]} 55. Bd5 {[%clk 0:00:07]}  Bc5 {[%clk 0:00:07]} 56. Be6 {[%clk 0:00:08]}  Bd4 {[%clk 0:00:08]} 57. Bd5 {[%clk 0:00:09]}  Bc5 {[%clk 0:00:09]} 1/2-1/2


[Site "https://www.chess.com"]

[Event "Titled Tuesday Blitz April 11 Early 2023"]
[White "Mrudul Dehankar"]
[Black "Sai Han Thiha"]
[WhiteFideId "25096990"]
[BlackFideId "13012290"]
[WhiteElo "2139"]
[BlackElo "1954"]
[Result "0-1"]
[Round "10"]
[TimeControl "180+2"]
[Date "2023.04.11"]
[WhiteClock "0:00:01"]
[BlackClock "0:00:03"]

1. e4 {[%clk 0:02:47]}  c6 {[%clk 0:02:59]} 2. d4 {[%clk 0:02:44]}  d5 {[%clk 0:03:00]} 3. e5 {[%clk 0:02:43]}  c5 {[%clk 0:03:00]} 4. Nf3 {[%clk 0:02:42]}  cxd4 {[%clk 0:03:00]} 5. Nxd4 {[%clk 0:02:40]}  Nc6 {[%clk 0:03:01]} 6. Nxc6 {[%clk 0:02:38]}  bxc6 {[%clk 0:03:02]} 7. Bd3 {[%clk 0:02:39]}  e6 {[%clk 0:03:02]} 8. O-O {[%clk 0:02:38]}  a5 {[%clk 0:03:02]} 9. a4 {[%clk 0:02:35]}  Ba6 {[%clk 0:03:01]} 10. Qe2 {[%clk 0:02:34]}  Bxd3 {[%clk 0:02:51]} 11. cxd3 {[%clk 0:02:33]}  Ne7 {[%clk 0:02:41]} 12. Bg5 {[%clk 0:02:21]}  h6 {[%clk 0:02:33]} 13. Bd2 {[%clk 0:02:21]}  Nf5 {[%clk 0:02:27]} 14. Bc3 {[%clk 0:02:21]}  Qb6 {[%clk 0:02:22]} 15. Rc1 {[%clk 0:02:16]}  Bb4 {[%clk 0:02:04]} 16. Nd2 {[%clk 0:02:03]}  O-O {[%clk 0:02:02]} 17. Qg4 {[%clk 0:01:58]}  Bc5 {[%clk 0:01:54]} 18. Qe2 {[%clk 0:01:48]}  d4 {[%clk 0:01:52]} 19. Nc4 {[%clk 0:01:47]}  Qb3 {[%clk 0:01:12]} 20. Nxa5 {[%clk 0:01:35]}  Qd5 {[%clk 0:00:31]} 21. Be1 {[%clk 0:01:28]}  Nh4 {[%clk 0:00:27]} 22. Qg4 {[%clk 0:01:11]}  Ng6 {[%clk 0:00:27]} 23. f4 {[%clk 0:01:08]}  h5 {[%clk 0:00:27]} 24. Qg3 {[%clk 0:01:00]}  h4 {[%clk 0:00:25]} 25. Qg4 {[%clk 0:00:54]}  h3 {[%clk 0:00:25]} 26. gxh3 {[%clk 0:00:53]}  Ra6 {[%clk 0:00:20]} 27. Nc4 {[%clk 0:00:52]}  Rb8 {[%clk 0:00:15]} 28. h4 {[%clk 0:00:44]}  Rb3 {[%clk 0:00:16]} 29. h5 {[%clk 0:00:40]}  Ne7 {[%clk 0:00:16]} 30. Rd1 {[%clk 0:00:29]}  Nf5 {[%clk 0:00:14]} 31. Qg2 {[%clk 0:00:29]}  Qd7 {[%clk 0:00:10]} 32. Qc2 {[%clk 0:00:22]}  Rb8 {[%clk 0:00:07]} 33. Bf2 {[%clk 0:00:18]}  Qd5 {[%clk 0:00:07]} 34. Qe2 {[%clk 0:00:16]}  Ne3 {[%clk 0:00:07]} 35. Bxe3 {[%clk 0:00:14]}  dxe3 {[%clk 0:00:07]} 36. a5 {[%clk 0:00:10]}  Rb3 {[%clk 0:00:07]} 37. Rac1 {[%clk 0:00:09]}  Qd4 {[%clk 0:00:07]} 38. Kg2 {[%clk 0:00:08]}  Qxf4 {[%clk 0:00:07]} 39. Rf1 {[%clk 0:00:07]}  Qg5+ {[%clk 0:00:06]} 40. Kh1 {[%clk 0:00:07]}  Bd4 {[%clk 0:00:04]} 41. Rg1 {[%clk 0:00:07]}  Qf5 {[%clk 0:00:04]} 42. Rcf1 {[%clk 0:00:06]}  Qh7 {[%clk 0:00:03]} 43. Rg4 {[%clk 0:00:03]}  c5 {[%clk 0:00:03]} 44. Rfg1 {[%clk 0:00:03]}  Kh8 {[%clk 0:00:02]} 45. Rxg7 {[%clk 0:00:03]}  Qxg7 {[%clk 0:00:02]} 46. Rxg7 {[%clk 0:00:04]}  Kxg7 {[%clk 0:00:03]} 47. Qg4+ {[%clk 0:00:03]}  Kh8 {[%clk 0:00:03]} 48. Qf3 {[%clk 0:00:02]}  e2 {[%clk 0:00:03]} 49. Kg2 {[%clk 0:00:01]}  e1=Q {[%clk 0:00:03]} 50. Qf6+ {[%clk 0:00:01]}  Kg8 {[%clk 0:00:03]} 0-1


[Site "https://www.chess.com"]

[Event "Titled Tuesday Blitz April 11 Early 2023"]
[White "Orujov2008"]
[Black "Sreyas Payyappat"]
[BlackFideId "46674969"]
[WhiteElo "2321"]
[BlackElo "2083"]
[Result "1-0"]
[Round "10"]
[TimeControl "180+2"]
[Date "2023.04.11"]
[WhiteClock "0:00:26"]
[BlackClock "0:01:22"]

1. e4 {[%clk 0:03:00]}  c6 {[%clk 0:02:55]} 2. d4 {[%clk 0:03:00]}  d5 {[%clk 0:02:56]} 3. Nc3 {[%clk 0:03:01]}  dxe4 {[%clk 0:02:56]} 4. Nxe4 {[%clk 0:03:02]}  Nf6 {[%clk 0:02:57]} 5. Nxf6+ {[%clk 0:03:02]}  exf6 {[%clk 0:02:58]} 6. Be3 {[%clk 0:03:02]}  Bd6 {[%clk 0:02:58]} 7. Bd3 {[%clk 0:03:03]}  O-O {[%clk 0:02:59]} 8. Ne2 {[%clk 0:03:03]}  Re8 {[%clk 0:02:59]} 9. c4 {[%clk 0:03:03]}  Nd7 {[%clk 0:02:59]} 10. Qc2 {[%clk 0:03:04]}  Nf8 {[%clk 0:03:00]} 11. O-O-O {[%clk 0:03:05]}  Be6 {[%clk 0:02:58]} 12. Nc3 {[%clk 0:02:59]}  Rc8 {[%clk 0:02:58]} 13. c5 {[%clk 0:02:59]}  Be7 {[%clk 0:02:58]} 14. Be4 {[%clk 0:02:59]}  Bd5 {[%clk 0:02:53]} 15. Bxd5 {[%clk 0:02:45]}  cxd5 {[%clk 0:02:54]} 16. Qf5 {[%clk 0:02:43]}  b6 {[%clk 0:02:45]} 17. Qxd5 {[%clk 0:02:38]}  Qc7 {[%clk 0:02:40]} 18. Kb1 {[%clk 0:02:27]}  bxc5 {[%clk 0:02:28]} 19. dxc5 {[%clk 0:02:25]}  Bxc5 {[%clk 0:02:29]} 20. Bxc5 {[%clk 0:02:26]}  Qxc5 {[%clk 0:02:28]} 21. Qxc5 {[%clk 0:02:26]}  Rxc5 {[%clk 0:02:29]} 22. Rhe1 {[%clk 0:02:26]}  Rce5 {[%clk 0:02:27]} 23. Rxe5 {[%clk 0:02:14]}  fxe5 {[%clk 0:02:28]} 24. b4 {[%clk 0:02:06]}  f6 {[%clk 0:02:22]} 25. Kb2 {[%clk 0:02:04]}  Kf7 {[%clk 0:02:21]} 26. a4 {[%clk 0:02:03]}  Ne6 {[%clk 0:02:15]} 27. Rd7+ {[%clk 0:01:34]}  Re7 {[%clk 0:02:15]} 28. Rxe7+ {[%clk 0:01:32]}  Kxe7 {[%clk 0:02:16]} 29. Kb3 {[%clk 0:01:33]}  Nf4 {[%clk 0:02:02]} 30. Nb5 {[%clk 0:01:25]}  Nxg2 {[%clk 0:01:51]} 31. Nxa7 {[%clk 0:01:23]}  Nf4 {[%clk 0:01:51]} 32. a5 {[%clk 0:01:15]}  Kd7 {[%clk 0:01:49]} 33. b5 {[%clk 0:01:10]}  Nd3 {[%clk 0:01:47]} 34. b6 {[%clk 0:01:03]}  Nxf2 {[%clk 0:01:39]} 35. b7 {[%clk 0:00:57]}  Kc7 {[%clk 0:01:40]} 36. a6 {[%clk 0:00:54]}  Ne4 {[%clk 0:01:31]} 37. Kb4 {[%clk 0:00:44]}  Nd6 {[%clk 0:01:28]} 38. Nc6 {[%clk 0:00:40]}  Nxb7 {[%clk 0:01:28]} 39. a7 {[%clk 0:00:35]}  e4 {[%clk 0:01:25]} 40. Nd4 {[%clk 0:00:28]}  e3 {[%clk 0:01:21]} 41. a8=Q {[%clk 0:00:28]}  e2 {[%clk 0:01:22]} 42. Nxe2 {[%clk 0:00:26]} 1-0


[Site "https://www.chess.com"]

[Event "Titled Tuesday Blitz April 11 Early 2023"]
[White "Dishman, Stephen"]
[Black "Shapiro, Viktor"]
[WhiteFideId "403024"]
[BlackFideId "4175700"]
[WhiteElo "2204"]
[BlackElo "2152"]
[Result "1-0"]
[Round "10"]
[TimeControl "180+2"]
[Date "2023.04.11"]
[WhiteClock "0:00:26"]
[BlackClock "0:00:02"]

1. d4 {[%clk 0:03:00]}  Nf6 {[%clk 0:01:17]} 2. Bg5 {[%clk 0:02:59]}  c5 {[%clk 0:01:17]} 3. d5 {[%clk 0:02:59]}  d6 {[%clk 0:01:17]} 4. Nc3 {[%clk 0:02:58]}  a6 {[%clk 0:01:16]} 5. a4 {[%clk 0:02:57]}  g6 {[%clk 0:01:16]} 6. e4 {[%clk 0:02:55]}  Bg7 {[%clk 0:01:16]} 7. f4 {[%clk 0:02:52]}  O-O {[%clk 0:01:16]} 8. Nf3 {[%clk 0:02:52]}  Bg4 {[%clk 0:01:16]} 9. Bd3 {[%clk 0:02:47]}  Nbd7 {[%clk 0:01:16]} 10. O-O {[%clk 0:02:45]}  c4 {[%clk 0:01:16]} 11. Bxc4 {[%clk 0:02:39]}  Qb6+ {[%clk 0:01:16]} 12. Kh1 {[%clk 0:02:39]}  Qxb2 {[%clk 0:01:17]} 13. Qd2 {[%clk 0:02:21]}  Rac8 {[%clk 0:01:12]} 14. Rfb1 {[%clk 0:02:17]}  Qxc3 {[%clk 0:00:58]} 15. Qxc3 {[%clk 0:02:17]}  Nxe4 {[%clk 0:00:54]} 16. Qb4 {[%clk 0:02:09]}  Bxa1 {[%clk 0:00:33]} 17. Rxa1 {[%clk 0:02:10]}  f6 {[%clk 0:00:33]} 18. Bh4 {[%clk 0:02:06]}  Rc7 {[%clk 0:00:20]} 19. Nd4 {[%clk 0:02:01]}  Ndc5 {[%clk 0:00:19]} 20. Bd3 {[%clk 0:01:46]}  Rfc8 {[%clk 0:00:17]} 21. h3 {[%clk 0:01:39]}  Bd7 {[%clk 0:00:17]} 22. Kh2 {[%clk 0:01:32]}  Kf7 {[%clk 0:00:15]} 23. Re1 {[%clk 0:01:31]}  f5 {[%clk 0:00:14]} 24. Ne6 {[%clk 0:01:25]}  Bxe6 {[%clk 0:00:12]} 25. dxe6+ {[%clk 0:01:25]}  Kxe6 {[%clk 0:00:13]} 26. Bxe4 {[%clk 0:01:25]}  Nxe4 {[%clk 0:00:13]} 27. Rxe4+ {[%clk 0:01:19]}  fxe4 {[%clk 0:00:13]} 28. Qxe4+ {[%clk 0:01:20]}  Kf7 {[%clk 0:00:12]} 29. f5 {[%clk 0:01:20]}  gxf5 {[%clk 0:00:09]} 30. Qxf5+ {[%clk 0:01:20]}  Ke8 {[%clk 0:00:09]} 31. Qxh7 {[%clk 0:01:19]}  e5 {[%clk 0:00:08]} 32. Qg8+ {[%clk 0:01:13]}  Kd7 {[%clk 0:00:08]} 33. Qf7+ {[%clk 0:01:12]}  Kc6 {[%clk 0:00:08]} 34. Qe6 {[%clk 0:01:09]}  b5 {[%clk 0:00:07]} 35. axb5+ {[%clk 0:01:05]}  axb5 {[%clk 0:00:06]} 36. Bg3 {[%clk 0:01:02]}  Kc5 {[%clk 0:00:04]} 37. h4 {[%clk 0:01:01]}  b4 {[%clk 0:00:04]} 38. h5 {[%clk 0:01:01]}  Rc6 {[%clk 0:00:04]} 39. h6 {[%clk 0:01:00]}  R6c7 {[%clk 0:00:04]} 40. Qf5 {[%clk 0:00:52]}  Rh8 {[%clk 0:00:01]} 41. Bxe5 {[%clk 0:00:28]}  Rch7 {[%clk 0:00:02]} 42. Bxh8+ {[%clk 0:00:26]} 1-0


[Site "https://www.chess.com"]

[Event "Titled Tuesday Blitz April 11 Early 2023"]
[White "a-z30"]
[Black "Minko, Dmitry"]
[BlackFideId "24188468"]
[WhiteElo "2323"]
[BlackElo "2147"]
[Result "0-1"]
[Round "10"]
[TimeControl "180+2"]
[Date "2023.04.11"]
[WhiteClock "0:00:02"]
[BlackClock "0:00:15"]

1. d3 {[%clk 0:03:00]}  e5 {[%clk 0:02:51]} 2. Nf3 {[%clk 0:03:01]}  Nc6 {[%clk 0:02:51]} 3. g3 {[%clk 0:03:01]}  d5 {[%clk 0:02:51]} 4. Bg2 {[%clk 0:03:02]}  f5 {[%clk 0:02:50]} 5. O-O {[%clk 0:03:02]}  Nf6 {[%clk 0:02:50]} 6. c4 {[%clk 0:03:03]}  dxc4 {[%clk 0:02:47]} 7. Qa4 {[%clk 0:03:01]}  Bd6 {[%clk 0:02:34]} 8. Qxc4 {[%clk 0:03:00]}  Qe7 {[%clk 0:02:33]} 9. Bg5 {[%clk 0:03:00]}  Be6 {[%clk 0:02:33]} 10. Qb5 {[%clk 0:02:59]}  O-O {[%clk 0:02:32]} 11. Qxb7 {[%clk 0:02:51]}  Nb4 {[%clk 0:02:33]} 12. Ne1 {[%clk 0:02:25]}  e4 {[%clk 0:02:01]} 13. Qb5 {[%clk 0:01:51]}  Rab8 {[%clk 0:02:00]} 14. Qa4 {[%clk 0:01:50]}  h6 {[%clk 0:01:59]} 15. Bxf6 {[%clk 0:01:48]}  Qxf6 {[%clk 0:02:00]} 16. Nc3 {[%clk 0:01:47]}  exd3 {[%clk 0:01:48]} 17. Nxd3 {[%clk 0:01:46]}  Nxd3 {[%clk 0:01:48]} 18. exd3 {[%clk 0:01:47]}  Rxb2 {[%clk 0:01:48]} 19. Bd5 {[%clk 0:01:36]}  Qxc3 {[%clk 0:01:09]} 20. Bxe6+ {[%clk 0:01:35]}  Kh8 {[%clk 0:01:10]} 21. Rab1 {[%clk 0:01:08]}  Rxb1 {[%clk 0:01:01]} 22. Rxb1 {[%clk 0:01:07]}  Qxd3 {[%clk 0:01:02]} 23. Rd1 {[%clk 0:00:44]}  Qc3 {[%clk 0:00:47]} 24. Qxa7 {[%clk 0:00:33]}  Bc5 {[%clk 0:00:47]} 25. Qa6 {[%clk 0:00:28]}  f4 {[%clk 0:00:34]} 26. Qc4 {[%clk 0:00:25]}  Bxf2+ {[%clk 0:00:24]} 27. Kf1 {[%clk 0:00:11]}  Qe3 {[%clk 0:00:22]} 28. Qe2 {[%clk 0:00:08]}  fxg3 {[%clk 0:00:21]} 29. Qxe3 {[%clk 0:00:07]}  Bxe3+ {[%clk 0:00:22]} 30. Ke2 {[%clk 0:00:07]}  Bf4 {[%clk 0:00:21]} 31. hxg3 {[%clk 0:00:07]}  Bxg3 {[%clk 0:00:22]} 32. Rd7 {[%clk 0:00:06]}  Ra8 {[%clk 0:00:20]} 33. Bb3 {[%clk 0:00:04]}  Bd6 {[%clk 0:00:17]} 34. Kf3 {[%clk 0:00:05]}  h5 {[%clk 0:00:16]} 35. Ke4 {[%clk 0:00:05]}  Kh7 {[%clk 0:00:16]} 36. Kf5 {[%clk 0:00:05]}  Kh6 {[%clk 0:00:16]} 37. Ke6 {[%clk 0:00:04]}  h4 {[%clk 0:00:16]} 38. Bd5 {[%clk 0:00:02]}  Rf8 {[%clk 0:00:15]} 0-1


[Site "https://www.chess.com"]

[Event "Titled Tuesday Blitz April 11 Early 2023"]
[White "Sowul, Bartosz"]
[Black "Kohler, Aran"]
[WhiteFideId "1137590"]
[BlackFideId "1002856"]
[WhiteElo "2188"]
[BlackElo "2306"]
[Result "1-0"]
[Round "10"]
[TimeControl "180+2"]
[Date "2023.04.11"]
[WhiteClock "0:00:36"]
[BlackClock "0:00:02"]

1. e4 {[%clk 0:02:58]}  e5 {[%clk 0:02:56]} 2. Nf3 {[%clk 0:02:58]}  Nc6 {[%clk 0:02:56]} 3. Bb5 {[%clk 0:02:58]}  a6 {[%clk 0:02:56]} 4. Bxc6 {[%clk 0:02:58]}  dxc6 {[%clk 0:02:56]} 5. O-O {[%clk 0:02:59]}  Bg4 {[%clk 0:02:33]} 6. h3 {[%clk 0:02:59]}  h5 {[%clk 0:02:18]} 7. d3 {[%clk 0:02:59]}  Bxf3 {[%clk 0:01:56]} 8. Qxf3 {[%clk 0:02:58]}  Nf6 {[%clk 0:01:52]} 9. Be3 {[%clk 0:02:54]}  Be7 {[%clk 0:01:48]} 10. Nd2 {[%clk 0:02:54]}  Nd7 {[%clk 0:01:36]} 11. Nc4 {[%clk 0:02:53]}  Bf6 {[%clk 0:01:32]} 12. a4 {[%clk 0:02:46]}  Qe7 {[%clk 0:01:32]} 13. c3 {[%clk 0:02:24]}  g5 {[%clk 0:01:28]} 14. b4 {[%clk 0:02:16]}  g4 {[%clk 0:01:26]} 15. Qf5 {[%clk 0:02:14]}  O-O {[%clk 0:01:12]} 16. Qxh5 {[%clk 0:02:07]}  Bg7 {[%clk 0:01:00]} 17. Qxg4 {[%clk 0:01:56]}  f5 {[%clk 0:00:52]} 18. exf5 {[%clk 0:01:51]}  Qf6 {[%clk 0:00:42]} 19. f4 {[%clk 0:01:40]}  exf4 {[%clk 0:00:35]} 20. Bd4 {[%clk 0:01:40]}  Qh6 {[%clk 0:00:28]} 21. Rxf4 {[%clk 0:01:36]}  Nf6 {[%clk 0:00:20]} 22. Qf3 {[%clk 0:01:28]}  Rad8 {[%clk 0:00:18]} 23. Re1 {[%clk 0:01:23]}  Nh5 {[%clk 0:00:17]} 24. Rg4 {[%clk 0:01:19]}  Kh7 {[%clk 0:00:15]} 25. Re7 {[%clk 0:01:01]}  Rg8 {[%clk 0:00:08]} 26. f6 {[%clk 0:00:46]}  Rxd4 {[%clk 0:00:04]} 27. cxd4 {[%clk 0:00:43]}  Nxf6 {[%clk 0:00:02]} 28. Qf5+ {[%clk 0:00:39]}  Kh8 {[%clk 0:00:02]} 29. Ne5 {[%clk 0:00:36]} 1-0


[Site "https://www.chess.com"]

[Event "Titled Tuesday Blitz April 11 Early 2023"]
[White "Makhmudov, Shukhrat"]
[Black "Manukian, Artak"]
[WhiteFideId "14200775"]
[BlackFideId "13301373"]
[WhiteElo "2135"]
[BlackElo "2130"]
[Result "0-1"]
[Round "10"]
[TimeControl "180+2"]
[Date "2023.04.11"]
[WhiteClock "0:01:02"]
[BlackClock "0:01:14"]

1. e4 {[%clk 0:03:00]}  c6 {[%clk 0:03:00]} 2. Nc3 {[%clk 0:02:59]}  d5 {[%clk 0:03:00]} 3. exd5 {[%clk 0:03:00]}  cxd5 {[%clk 0:03:01]} 4. d4 {[%clk 0:03:01]}  Nc6 {[%clk 0:03:01]} 5. Bf4 {[%clk 0:03:01]}  a6 {[%clk 0:02:56]} 6. Nf3 {[%clk 0:03:01]}  Bg4 {[%clk 0:02:55]} 7. Be2 {[%clk 0:02:57]}  e6 {[%clk 0:02:55]} 8. Ne5 {[%clk 0:02:55]}  Bxe2 {[%clk 0:02:54]} 9. Nxe2 {[%clk 0:02:55]}  Nf6 {[%clk 0:02:47]} 10. O-O {[%clk 0:02:48]}  Bd6 {[%clk 0:02:43]} 11. Nxc6 {[%clk 0:02:48]}  bxc6 {[%clk 0:02:42]} 12. Bxd6 {[%clk 0:02:48]}  Qxd6 {[%clk 0:02:43]} 13. c3 {[%clk 0:02:48]}  O-O {[%clk 0:02:42]} 14. b4 {[%clk 0:02:44]}  a5 {[%clk 0:02:42]} 15. a3 {[%clk 0:02:44]}  Ne4 {[%clk 0:02:41]} 16. f3 {[%clk 0:02:42]}  Nf6 {[%clk 0:02:41]} 17. f4 {[%clk 0:02:32]}  g6 {[%clk 0:02:39]} 18. Ng3 {[%clk 0:02:24]}  Nd7 {[%clk 0:02:24]} 19. Qg4 {[%clk 0:02:09]}  f5 {[%clk 0:02:17]} 20. Qe2 {[%clk 0:02:07]}  Nf6 {[%clk 0:02:15]} 21. Qe3 {[%clk 0:01:36]}  Kf7 {[%clk 0:02:05]} 22. Rfe1 {[%clk 0:01:32]}  Ra7 {[%clk 0:01:58]} 23. Nf1 {[%clk 0:01:21]}  Ne4 {[%clk 0:01:56]} 24. Nd2 {[%clk 0:01:18]}  Rfa8 {[%clk 0:01:47]} 25. Nb3 {[%clk 0:01:16]}  axb4 {[%clk 0:01:43]} 26. axb4 {[%clk 0:01:16]}  Qb8 {[%clk 0:01:34]} 27. Na5 {[%clk 0:01:13]}  Ra6 {[%clk 0:01:29]} 28. Rab1 {[%clk 0:01:05]}  Rb6 {[%clk 0:01:15]} 29. g3 {[%clk 0:01:02]}  Rxa5 {[%clk 0:01:14]} 0-1


[Site "https://www.chess.com"]